fUST/lending_fUST_20250925
["ID","MTS","AMOUNT","RATE_DAILY","PERIOD"]
[387617267,1758787980943,478.37140587,0.0001935,2]
[387617268,1758787982778,300.0,0.00019351,2]
[387617269,1758787984210,303.02411855,0.0001935,2]
[387617270,1758787984237,184.72632955,0.0001935,2]
[387617271,1758788005099,480.0,0.0001935,2]
[387617272,1758788010090,480.0,0.0001935,2]
[387617273,1758788018734,204.56164891,0.00018978,2]
[387617274,1758788021623,482.34956189,0.0001935,2]
[387617275,1758788025328,480.80576267,0.0001935,2]
[387617276,1758788025819,480.0,0.0001935,2]
[387617277,1758788025912,473.65361572,0.0001935,2]
[387617278,1758788027732,482.81777262,0.0001935,2]
[387617279,1758788029566,480.0,0.0001935,2]
[387617280,1758788034707,486.31668492,0.0001935,2]
[387617281,1758788036637,483.1593937,0.0001935,2]
[387617282,1758788038515,486.60339594,0.0001935,2]
[387617283,1758788038910,481.48672431,0.0001935,2]
[387617284,1758788040355,486.84416343,0.0001935,2]
[387617285,1758788040733,206.32701861,0.0001935,2]
[387617286,1758788042128,480.0,0.0001935,2]
[387617287,1758788043459,300.0,0.00019351,2]
[387617288,1758788045014,486.70722875,0.0001935,2]
[387617289,1758788045634,487.17510761,0.0001935,2]
[387617290,1758788047384,483.96098079,0.0001935,2]
[387617291,1758788048375,483.8008432,0.0001935,2]
[387617292,1758788051870,418.71376738,0.00019351,2]
[387617293,1758788051994,61.28623262,0.00019351,2]
[387617294,1758788052586,562.2001719,0.0001935,2]
[387617295,1758788054016,270.18544533,0.0001935,2]
[387617296,1758788056014,485.07400637,0.0001935,2]
[387617297,1758788060008,484.52172885,0.0001935,2]
[387617298,1758788063295,491.27331161,0.0001935,2]
[387617299,1758788065080,486.45993705,0.0001935,2]
[387617300,1758788070144,422.85730773,0.0001935,2]
[387617301,1758788071611,480.0,0.00019351,2]
[387617302,1758788071912,483.26016595,0.0001935,2]
[387617303,1758788076361,480.0,0.0001935,2]
[387617305,1758788078019,480.0,0.00019351,2]
[387617306,1758788078792,480.0,0.0001935,2]
[387617307,1758788079898,480.0,0.0001935,2]
[387617308,1758788081568,580.92125195,0.0001935,2]
[387617309,1758788081729,485.67367477,0.0001935,2]
[387617310,1758788083511,480.0,0.0001935,2]
[387617311,1758788087032,481.88528287,0.0001935,2]
[387617312,1758788090275,480.0,0.00019351,2]
[387617315,1758788101615,300.0,0.00019351,2]
[387617316,1758788102503,300.0,0.00019351,2]
[387617317,1758788102618,239.0,0.00019351,2]
[387617318,1758788103491,300.0,0.00019351,2]
[387617319,1758788108792,205.411483,0.00019351,2]
[387617320,1758788108819,994.588517,0.00019351,2]
[387617321,1758788111651,480.0,0.00019351,2]
[387617322,1758788112307,483.7972406,0.0001935,2]
[387617323,1758788114412,482.8369745,0.0001935,2]
[387617324,1758788115073,480.0,0.00019351,2]
[387617325,1758788117083,480.0,0.00019351,2]
[387617326,1758788124839,480.0,0.0001935,2]
[387617327,1758788128153,480.0,0.00019351,2]
[387617328,1758788133725,484.74273244,0.0001935,2]
[387617329,1758788136983,480.0,0.0001935,2]
[387617330,1758788138919,482.88994334,0.0001935,2]
[387617331,1758788139207,480.0,0.0001935,2]
[387617332,1758788140858,480.0,0.0001935,2]
[387617333,1758788143464,480.0,0.00019351,2]
[387617334,1758788144183,480.0,0.00019351,2]
[387617335,1758788145619,733.28,0.00019351,2]
[387617336,1758788151566,480.0,0.0001935,2]
[387617338,1758788153623,500.0,0.0001935,2]
[387617339,1758788156464,480.0,0.0001935,2]
[387617340,1758788166079,77.87459212,0.00019351,2]
[387617341,1758788166142,402.12540788,0.00019351,2]
[387617342,1758788166679,486.81290291,0.0001935,2]
[387617343,1758788169898,1618.88,0.00019351,2]
[387617344,1758788173531,484.72136391,0.0001935,2]
[387617345,1758788181876,480.0,0.00019345,2]
[387617346,1758788182841,480.7221287,0.0001935,2]
[387617347,1758788189475,480.0,0.0001935,2]
[387617348,1758788191245,480.0,0.0001935,2]
[387617349,1758788192594,480.0,0.00019351,2]
[387617350,1758788196103,480.54490127,0.0001935,2]
[387617351,1758788200331,1545.65396066,0.000193,2]
[387617352,1758788208649,480.0,0.00019351,2]
[387617353,1758788208725,480.0,0.00019351,2]
[387617354,1758788212275,480.0,0.0001935,2]
[387617355,1758788220073,480.0,0.0001935,2]
[387617356,1758788220150,480.0,0.00019351,2]
[387617357,1758788222709,180.54933467,0.00019351,2]
[387617358,1758788222774,119.45066533,0.00019351,2]
[387617359,1758788228799,302.57643837,0.00019254,2]
[387617360,1758788230700,458.54071435,0.0001935,2]
[387617361,1758788239303,480.0,0.00019351,2]
[387617362,1758788240261,480.0,0.0001935,2]
[387617363,1758788241153,480.0,0.00019351,2]
[387617364,1758788244138,480.0,0.0001935,2]
[387617365,1758788251336,491.20635136,0.0001935,2]
[387617366,1758788257232,485.4,0.00019351,2]
[387617367,1758788266547,250.0,0.00018662,2]
[387617368,1758788273597,480.0,0.0001935,2]
[387617369,1758788284846,484.75133298,0.0001935,2]
[387617370,1758788289595,480.0,0.00019351,2]
[387617371,1758788294929,4528.08449761,0.00018934,2]
[387617372,1758788294993,7140.99048409,0.00018934,2]
[387617373,1758788295829,235.38412552,0.00019352,2]
[387617374,1758788295933,715.5796459,0.00018934,2]
[387617375,1758788296226,163.2109392,0.000193,2]
[387617376,1758788296473,531.38138659,0.00019351,2]
[387617377,1758788303233,480.0,0.00019351,2]
[387617378,1758788314030,480.0,0.0001935,2]
[387617379,1758788322102,-4673.60404517,0.00019352,2]
[387617380,1758788323072,480.0,0.00019351,2]
[387617381,1758788337368,480.0,0.00019351,2]
[387617382,1758788340850,480.0,0.0001935,2]
[387617383,1758788355081,481.13078591,0.0001935,2]
[387617384,1758788358580,212.15676891,0.0001935,2]
[387617385,1758788361695,660.7920725,0.000193,2]
[387617386,1758788362891,480.0,0.00019351,2]
[387617388,1758788375153,480.0,0.00019351,2]
[387617389,1758788377215,1551.43,0.0001935,2]
[387617390,1758788379644,480.0,0.00019351,2]
[387617391,1758788380973,264.35054532,0.00019352,2]
[387617392,1758788392370,480.0,0.00019351,2]
[387617393,1758788395296,636.9939962,0.00018947,2]
[387617394,1758788449008,-1200.0,0.0001935,2]
[387617395,1758788449080,-480.0,0.0001935,2]
[387617396,1758788449150,-480.0,0.00019351,2]
[387617397,1758788449219,-300.0,0.00019351,2]
[387617398,1758788449297,-300.0,0.00019351,2]
[387617399,1758788449370,-300.0,0.00019351,2]
[387617400,1758788449440,-300.0,0.00019351,2]
[387617401,1758788449513,-532.02126288,0.00019351,2]
[387617402,1758788449584,-480.0,0.00019351,2]
[387617403,1758788449657,-553.23747424,0.00019351,2]
[387617404,1758788450316,-149.49252576,0.00019351,2]
[387617405,1758788466035,480.0,0.00019351,2]
[387617406,1758788467271,246.36213622,0.00019352,2]
[387617407,1758788467340,873.9107604,0.00019105,2]
[387617408,1758788470633,1030.43597376,0.000193,2]
[387617409,1758788476369,480.0,0.00019351,2]
[387617410,1758788476443,246.10488564,0.00019352,2]
[387617411,1758788480152,299.24377373,0.00019351,2]
[387617412,1758788491874,254.960653,0.00018845,2]
[387617413,1758788518125,-480.0,0.00019351,2]
[387617414,1758788518202,-480.0,0.00019351,2]
[387617415,1758788518430,480.0,0.00019351,2]
[387617416,1758788521810,480.0,0.0001935,2]
[387617421,1758788526597,480.0,0.00019351,2]
[387617422,1758788531579,1486.79,0.00019351,2]
[387617424,1758788533632,344.996614,0.00019352,2]
[387617425,1758788536409,163.21093918,0.000193,2]
[387617426,1758788542676,695.89623038,0.00019352,2]
[387617427,1758788544283,480.0,0.00019351,2]
[387617428,1758788551177,1414.43046146,0.00019352,2]
[387617429,1758788551660,480.0,0.00019351,2]
[387617430,1758788559360,480.0,0.00019351,2]
[387617431,1758788559960,666.0,0.00019352,2]
[387617432,1758788566776,428.68575498,0.00019351,2]
[387617433,1758788566843,51.31424502,0.00019351,2]
[387617434,1758788584513,3258.49229488,0.00018771,2]
[387617435,1758788588883,-448.23248801,0.00019351,2]
[387617436,1758788588949,-360.09631508,0.00019351,2]
[387617437,1758788589018,-480.0,0.00019351,2]
[387617438,1758788592407,480.0,0.00019351,2]
[387617440,1758788604525,480.0,0.00019351,2]
[387617441,1758788604857,666.0,0.00018849,2]
[387617442,1758788606040,1414.42046146,0.00019352,2]
[387617443,1758788608321,293.66467597,0.0001935,2]
[387617444,1758788615800,1541.43068796,0.00019352,2]
[387617445,1758788617438,480.0,0.00019351,2]
[387617446,1758788632363,748.18046146,0.00019078,2]
[387617447,1758788658452,-153.01278888,0.00019168,2]
[387617448,1758788658483,-480.0,0.00019351,2]
[387617449,1758788658515,-480.0,0.00019351,2]
[387617450,1758788658547,-480.0,0.00019351,2]
[387617451,1758788658579,-480.0,0.00019351,2]
[387617453,1758788671502,480.0,0.00019351,2]
[387617454,1758788675472,178.0,8.1e-07,2]
[387617455,1758788676543,178.0,8.1e-07,2]
[387617456,1758788678094,1414.40046146,0.00019352,2]
[387617457,1758788680221,480.0,0.00019351,2]
[387617458,1758788694017,1414.39046146,0.00019352,2]
[387617459,1758788695463,1152.9496506,0.00018873,2]
[387617461,1758788701409,300.0,0.00019351,2]
[387617462,1758788701953,256.24384872,0.000193,2]
[387617463,1758788701978,272.38980928,0.000193,2]
[387617464,1758788702159,300.0,0.00019351,2]
[387617465,1758788702288,300.0,0.00019351,2]
[387617466,1758788702335,153.05260373,0.00019179,2]
[387617467,1758788702660,1254.17046146,0.00019352,2]
[387617468,1758788702951,300.0,0.00019351,2]
[387617469,1758788704809,480.0,0.00019351,2]
[387617471,1758788710493,480.0,0.00019351,2]
[387617472,1758788711153,2198.24854666,0.00019352,2]
[387617473,1758788712057,1200.0,0.00019351,2]
[387617475,1758788719749,-1004.22763549,0.00019351,2]
[387617476,1758788719973,481.9137371,0.00019351,2]
[387617477,1758788724952,480.0,0.00019351,2]
[387617478,1758788724982,480.0,0.0001935,2]
[387617479,1758788728294,693.45,0.00019351,2]
[387617480,1758788732904,480.0,0.00019351,2]
[387617481,1758788733265,150.0,0.00014729,30]
[387617482,1758788733661,150.0,0.00016068,30]
[387617483,1758788734711,150.0,0.00017408,30]
[387617484,1758788735158,150.0,0.00018747,30]
[387617485,1758788735621,150.0,0.00020086,30]
[387617486,1758788736383,166.71,0.00021425,30]
[387617487,1758788736797,194.5,0.00022764,30]
[387617488,1758788737576,481.9092503,0.00019351,2]
[387617489,1758788739669,480.0,0.00019351,2]
[387617490,1758788740860,686.95731584,0.000193,2]
[387617491,1758788745043,924.916853,0.00018873,2]
[387617492,1758788747446,480.0,0.00019351,2]
[387617494,1758788751678,500.0,0.00019351,2]
[387617495,1758788751943,500.0,0.00019351,2]
[387617496,1758788752290,500.0,0.00019351,2]
[387617497,1758788752538,500.0,0.00019351,2]
[387617498,1758788752771,322.40757278,0.00019351,2]
[387617499,1758788752794,177.59242722,0.00019351,2]
[387617500,1758788753008,500.0,0.00019351,2]
[387617501,1758788753690,500.0,0.00019351,2]
[387617502,1758788753988,500.0,0.00019351,2]
[387617503,1758788754271,500.0,0.00019351,2]
[387617504,1758788754525,500.0,0.00019351,2]
[387617505,1758788754846,500.0,0.00019351,2]
[387617508,1758788755090,500.0,0.00019351,2]
[387617509,1758788755493,500.0,0.00019351,2]
[387617510,1758788755727,500.0,0.00019351,2]
[387617511,1758788755947,643.65505069,0.00019351,2]
[387617512,1758788757954,480.0,0.00019351,2]
[387617513,1758788759795,483.08240357,0.00019351,2]
[387617514,1758788761815,482.4880391,0.00019351,2]
[387617515,1758788762766,153.05260372,0.00019179,2]
[387617516,1758788763776,485.29556565,0.00019351,2]
[387617518,1758788765568,480.0,0.00019351,2]
[387617519,1758788768212,483.80669597,0.00019351,2]
[387617520,1758788769202,208.10686097,0.000193,2]
[387617521,1758788773561,482.45453593,0.00019351,2]
[387617522,1758788775549,481.32534001,0.00019351,2]
[387617523,1758788777328,459.15047717,0.00019351,2]
[387617524,1758788777352,31.41362449,0.00019351,2]
[387617525,1758788780665,481.4125852,0.00019351,2]
[387617526,1758788788906,192.83295331,0.00019351,2]
[387617527,1758788800517,482.64535066,0.00019351,2]
[387617528,1758788801316,480.0,0.00019351,2]
[387617529,1758788801527,480.0,0.00019351,2]
[387617530,1758788803757,480.0,0.00019351,2]
[387617531,1758788805673,480.0,0.00019351,2]
[387617532,1758788814668,480.0,0.00019351,2]
[387617533,1758788817905,1424.84,0.00019351,2]
[387617534,1758788824285,480.0,0.00019351,2]
[387617535,1758788825553,480.0,0.00019351,2]
[387617536,1758788830349,480.0,0.00019351,2]
[387617537,1758788830951,480.0,0.00019351,2]
[387617538,1758788843282,480.0,0.00019351,2]
[387617539,1758788848457,480.0,0.00019351,2]
[387617540,1758788853365,480.0,0.00019351,2]
[387617542,1758788866620,480.0,0.00019351,2]
[387617543,1758788870409,1146.86548634,0.00018,2]
[387617544,1758788870434,5130.19867387,0.00018,2]
[387617545,1758788872885,480.0,0.0001935,2]
[387617546,1758788875522,554.21502908,0.00019351,2]
[387617547,1758788877594,550.17949834,0.00019351,2]
[387617548,1758788879272,480.0,0.00019351,2]
[387617549,1758788882758,300.0,0.00019351,2]
[387617550,1758788882899,454.87185314,0.00019351,2]
[387617551,1758788885782,-168.0,0.00019352,2]
[387617552,1758788887071,541.94808202,0.00019351,2]
[387617553,1758788888269,480.0,0.00019351,2]
[387617554,1758788891038,480.0,0.00019351,2]
[387617555,1758788892604,-1374.76726307,0.00019352,2]
[387617556,1758788893494,-10000.01,0.00019352,2]
[387617557,1758788893797,-10000.01,0.00019352,2]
[387617558,1758788893945,419.05872078,0.00010618,2]
[387617559,1758788895040,129.53814277,0.00019351,2]
[387617560,1758788895065,170.46185723,0.00019351,2]
[387617561,1758788895988,480.0,0.00019351,2]
[387617562,1758788898052,-8800.95127922,0.00019352,2]
[387617563,1758788898258,-10000.01,0.00019352,2]
[387617566,1758788902934,1004.06603586,0.00015,2]
[387617568,1758788905019,2105.6461282,0.000176,2]
[387617570,1758788907918,-206.76203946,0.00019252,2]
[387617571,1758788907952,-9586.48592108,0.00019352,2]
[387617572,1758788908052,-10000.01,0.00019352,2]
[387617575,1758788914821,16863.60271842,0.00017,2]
[387617576,1758788915895,16688.5915,0.00019,3]
[387617577,1758788917209,3425.81303718,0.00015,2]
[387617578,1758788917907,-10000.01,0.00019352,2]
[387617579,1758788918083,-10000.01,0.00019352,2]
[387617580,1758788918257,-10000.01,0.00019352,2]
[387617581,1758788918399,-10000.01,0.00019352,2]
[387617583,1758788921773,167.243571,9.426e-05,2]
[387617584,1758788921918,167.243571,0.00014139,2]
[387617586,1758788922330,167.243571,0.00018852,2]
[387617588,1758788924707,2501.14682007,0.0001,2]
[387617589,1758788926547,1810.94603844,0.0001,2]
[387617590,1758788927352,248222.92645075,0.00019063,7]
[387617591,1758788928064,-742.63,0.00019351,2]
[387617592,1758788928100,-8514.75,0.00019352,2]
[387617593,1758788928263,-10000.01,0.00019352,2]
[387617594,1758788928417,-10000.01,0.00019352,2]
[387617595,1758788928571,-10000.01,0.00019352,2]
[387617596,1758788938008,-531.14201403,0.00019351,2]
[387617597,1758788938037,-480.0,0.00019351,2]
[387617598,1758788938064,-520.0,0.00019351,2]
[387617599,1758788938118,-6937.72597194,0.00019352,2]
[387617600,1758788938156,-10000.01,0.00019352,2]
[387617601,1758788938345,-10000.01,0.00019352,2]
[387617602,1758788938601,-10000.01,0.00019352,2]
[387617604,1758788945532,2577.8000506,0.00018777,2]
[387617605,1758788948107,-153.03795191,0.00019179,2]
[387617606,1758788948134,-480.0,0.00019351,2]
[387617607,1758788948161,-480.0,0.00019351,2]
[387617608,1758788948217,-7773.93409618,0.00019352,2]
[387617609,1758788948519,-10000.01,0.00019352,2]
[387617610,1758788948693,-10000.01,0.00019352,2]
[387617611,1758788948857,-10000.01,0.00019352,2]
[387617612,1758788953087,-1862.14649995,0.00019352,2]
[387617613,1758788956216,-480.0,0.00019351,2]
[387617614,1758788956243,-1625.49364239,0.00019352,2]
[387617615,1758788957919,235.38412552,0.00019078,2]
[387617616,1758788958905,-10000.01,0.00019352,2]
[387617617,1758788959226,-10000.01,0.00019352,2]
[387617618,1758788959507,-10000.01,0.00019352,2]
[387617619,1758788959819,-10000.01,0.00019352,2]
[387617621,1758788981817,161.0,8.1e-07,2]
[387617625,1758789011086,8998.4774082,0.00029388,60]
[387617643,1758789031764,-153.03795191,0.00019179,2]
[387617646,1758789031775,-185.65890008,0.00019252,2]
[387617648,1758789031788,-300.0,0.0001935,2]
[387617649,1758789031799,-169.0,0.0001935,2]
[387617650,1758789031811,-480.0,0.00019351,2]
[387617652,1758789031822,-480.0,0.00019351,2]
[387617654,1758789031833,-480.0,0.00019351,2]
[387617656,1758789031843,-429.10296742,0.00019351,2]
[387617658,1758789031853,-492.94539787,0.00019351,2]
[387617660,1758789031863,-564.44633765,0.00019351,2]
[387617662,1758789031875,-509.80292111,0.00019351,2]
[387617664,1758789031885,-480.0,0.00019351,2]
[387617666,1758789031896,-482.92753675,0.00019351,2]
[387617670,1758789031907,-405.71756841,0.00019351,2]
[387617672,1758789031917,-481.9797365,0.00019351,2]
[387617674,1758789031927,-480.0,0.00019351,2]
[387617676,1758789031938,-480.0,0.00019351,2]
[387617678,1758789031948,-480.0,0.00019351,2]
[387617680,1758789031958,-480.0,0.00019351,2]
[387617683,1758789031969,-165.85079404,0.00019351,2]
[387617685,1758789031979,-4889.97751308,0.00019352,2]
[387617688,1758789031997,-103791.95376792,0.00019352,2]
[387617690,1758789032008,-533.89623038,0.00019352,2]
[387617692,1758789032018,-500.0,0.000194,2]
[387617694,1758789032028,-300.0,0.000194,2]
[387617696,1758789032039,-300.0,0.000194,2]
[387617698,1758789032049,-300.0,0.000194,2]
[387617701,1758789032059,-300.0,0.000194,2]
[387617703,1758789032070,-300.0,0.000194,2]
[387617705,1758789032080,-300.0,0.000194,2]
[387617707,1758789032090,-300.0,0.000194,2]
[387617709,1758789032101,-480.0,0.00019624,2]
[387617711,1758789032112,-248.49,0.00019625,2]
[387617713,1758789032122,-480.0,0.00019625,2]
[387617715,1758789032132,-480.0,0.00019625,2]
[387617717,1758789032142,-1424.84,0.00019625,2]
[387617720,1758789032153,-480.0,0.00019625,2]
[387617722,1758789032163,-480.0,0.00019625,2]
[387617724,1758789032174,-480.0,0.00019625,2]
[387617726,1758789032184,-480.0,0.00019625,2]
[387617728,1758789032195,-480.0,0.00019625,2]
[387617730,1758789032205,-480.0,0.00019625,2]
[387617732,1758789032215,-480.0,0.00019625,2]
[387617735,1758789032226,-480.0,0.00019625,2]
[387617737,1758789032237,-480.0,0.00019625,2]
[387617739,1758789032248,-742.63,0.00019625,2]
[387617741,1758789032259,-480.0,0.00019625,2]
[387617743,1758789032269,-480.0,0.00019625,2]
[387617745,1758789032279,-480.0,0.00019625,2]
[387617760,1758789032414,-480.0,0.00019625,2]
[387617762,1758789032427,-601.3734267,0.00019625,2]
[387617764,1758789032436,-480.0,0.00019625,2]
[387617766,1758789032446,-480.0,0.00019625,2]
[387617768,1758789032456,-480.0,0.00019625,2]
[387617770,1758789032466,-480.0,0.00019625,2]
[387617772,1758789032475,-153.0379519,0.00019772,2]
[387617774,1758789032485,-480.0,0.00019898,2]
[387617776,1758789032495,-500.0,0.00019899,2]
[387617778,1758789032505,-480.0,0.00019899,2]
[387617780,1758789032515,-480.0,0.00019899,2]
[387617783,1758789032525,-1424.84,0.00019899,2]
[387617785,1758789032535,-480.0,0.00019899,2]
[387617787,1758789032544,-480.0,0.00019899,2]
[387617789,1758789032553,-480.0,0.00019899,2]
[387617791,1758789032562,-480.0,0.00019899,2]
[387617793,1758789032572,-480.0,0.00019899,2]
[387617795,1758789032582,-480.0,0.00019899,2]
[387617797,1758789032591,-480.0,0.00019899,2]
[387617799,1758789032601,-480.0,0.00019899,2]
[387617801,1758789032610,-480.0,0.00019899,2]
[387617803,1758789032620,-742.63,0.00019899,2]
[387617805,1758789032629,-480.0,0.00019899,2]
[387617807,1758789032638,-480.0,0.00019899,2]
[387617808,1758789032648,-480.0,0.00019899,2]
[387617809,1758789032658,-480.0,0.00019899,2]
[387617810,1758789032668,-480.0,0.00019899,2]
[387617811,1758789032678,-480.0,0.00019899,2]
[387617812,1758789032687,-480.0,0.00019899,2]
[387617813,1758789032697,-159.53448135,0.00019899,2]
[387617814,1758789032707,-928.69789657,0.000199,2]
[387617815,1758789032717,-500.0,0.0001996,2]
[387617816,1758789032726,-505.20370892,0.0001996,2]
[387617817,1758789032736,-500.0,0.0001996,2]
[387617818,1758789032745,-432.43637156,0.0001996,2]
[387617819,1758789032755,-500.0,0.00019973,2]
[387617820,1758789032764,-500.0,0.00019973,2]
[387617821,1758789032774,-502.25298361,0.00019973,2]
[387617822,1758789032783,-571.63619755,0.00019973,2]
[387617823,1758789032793,-500.0,0.00019973,2]
[387617824,1758789032803,-500.0,0.00019973,2]
[387617825,1758789032812,-500.0,0.00019973,2]
[387617826,1758789032822,-500.0,0.00019973,2]
[387617827,1758789032832,-500.0,0.00019973,2]
[387617828,1758789032842,-500.0,0.00019973,2]
[387617829,1758789032853,-500.0,0.00019973,2]
[387617830,1758789032862,-500.0,0.00020078,2]
[387617831,1758789032872,-1000.0,0.00020078,2]
[387617832,1758789032881,-151.0,0.00020172,2]
[387617833,1758789032890,-151.89653285,0.00020172,2]
[387617834,1758789032899,-480.0,0.00020172,2]
[387617835,1758789032909,-480.0,0.00020173,2]
[387617836,1758789032918,-247.43859374,0.00020173,2]
[387617837,1758789032928,-480.0,0.00020173,2]
[387617838,1758789032938,-1424.84,0.00020173,2]
[387617839,1758789032947,-480.0,0.00020173,2]
[387617840,1758789032958,-480.0,0.00020173,2]
[387617841,1758789032967,-480.0,0.00020173,2]
[387617842,1758789032977,-480.0,0.00020173,2]
[387617843,1758789032986,-480.0,0.00020173,2]
[387617844,1758789032995,-480.0,0.00020173,2]
[387617845,1758789033005,-480.0,0.00020173,2]
[387617846,1758789033014,-480.0,0.00020173,2]
[387617847,1758789033024,-480.0,0.00020173,2]
[387617848,1758789033034,-742.63,0.00020173,2]
[387617850,1758789033044,-480.0,0.00020173,2]
[387617852,1758789033054,-184.800535,0.00020173,2]
[387617854,1758789033063,-480.0,0.00020173,2]
[387617856,1758789033073,-480.0,0.00020173,2]
[387617858,1758789033083,-480.0,0.00020173,2]
[387617860,1758789033093,-480.0,0.00020173,2]
[387617862,1758789033103,-480.0,0.00020173,2]
[387617864,1758789033113,-501.69416085,0.00020269,2]
[387617866,1758789033123,-526.44835605,0.00020352,2]
[387617868,1758789033133,-500.0,0.00020386,2]
[387617870,1758789033143,-638.06170646,0.0002041,2]
[387617872,1758789033152,-502.42528438,0.0002041,2]
[387617874,1758789033162,-151.0,0.00020446,2]
[387617876,1758789033172,-480.0,0.00020446,2]
[387617878,1758789033183,-480.0,0.00020447,2]
[387617880,1758789033192,-480.0,0.00020447,2]
[387617882,1758789033202,-1424.84,0.00020447,2]
[387617883,1758789033212,-480.0,0.00020447,2]
[387617886,1758789033222,-480.0,0.00020447,2]
[387617887,1758789033232,-480.0,0.00020447,2]
[387617889,1758789033242,-480.0,0.00020447,2]
[387617892,1758789033253,-480.0,0.00020447,2]
[387617894,1758789033263,-480.0,0.00020447,2]
[387617895,1758789033272,-196.04055697,0.00020447,2]
[387617898,1758789033286,-283.95944303,0.00020447,2]
[387617900,1758789033296,-548.7158567,0.00020447,2]
[387617902,1758789033306,-480.0,0.00020447,2]
[387617904,1758789033316,-742.63,0.00020447,2]
[387617906,1758789033325,-480.0,0.00020447,2]
[387617908,1758789033334,-480.0,0.00020447,2]
[387617910,1758789033344,-480.0,0.00020447,2]
[387617911,1758789033353,-480.0,0.00020447,2]
[387617913,1758789033363,-480.0,0.00020447,2]
[387617915,1758789033374,-480.0,0.00020447,2]
[387617918,1758789033387,-1000.0,0.00020496,2]
[387617920,1758789033397,-504.90261732,0.000205,2]
[387617922,1758789033406,-1000.0,0.00020508,2]
[387617923,1758789033416,-1000.0,0.00020508,2]
[387617925,1758789033426,-500.0,0.0002051,2]
[387617927,1758789033435,-1000.0,0.00020521,2]
[387617929,1758789033444,-1000.0,0.00020521,2]
[387617931,1758789033453,-500.0,0.00020521,2]
[387617933,1758789033463,-162.04780698,0.00020521,2]
[387617935,1758789033475,-344.76147666,0.00020521,2]
[387617937,1758789033486,-500.0,0.00020521,2]
[387617940,1758789033496,-55.6051708,0.00020521,2]
[387617962,1758789033729,306.2508425,0.00018364,2]
[387617975,1758789034401,480.0,0.00019351,2]
[387617976,1758789035574,480.0,0.00019351,2]
[387617977,1758789035978,480.0,0.00019625,2]
[387617978,1758789036225,480.0,0.00019899,2]
[387617979,1758789036617,480.0,0.00020173,2]
[387618009,1758789037711,-480.0,0.00020447,2]
[387618010,1758789037721,-313.93023197,0.00020521,2]
[387618011,1758789037731,-162.265671,0.00020521,2]
[387618012,1758789037740,-785.4615991,0.00020634,2]
[387618013,1758789037750,-209.83671391,0.0002072,2]
[387618014,1758789037760,-480.0,0.0002072,2]
[387618015,1758789037769,-23.2089758,0.00020721,2]
[387618016,1758789037781,-127.7910242,0.00020721,2]
[387618017,1758789037790,-480.0,0.00020721,2]